fUST/lending_fUST_20250408
["ID","MTS","AMOUNT","RATE_DAILY","PERIOD"]
[357499217,1744090256710,-151.0,0.00024658,7]
[357499218,1744090256722,-151.0,0.00024658,7]
[357499219,1744090256734,-151.0,0.00024658,7]
[357499220,1744090256747,-151.0,0.00024658,7]
[357499221,1744090256759,-151.0,0.00024658,7]
[357499222,1744090256771,-151.0,0.00024658,7]
[357499223,1744090256783,-500.0,0.00024658,2]
[357499224,1744090256794,-300.00000001,0.00024658,2]
[357499225,1744090256807,-500.0,0.00024658,2]
[357499226,1744090256818,-500.0,0.00024658,2]
[357499227,1744090256831,-502.5418433,0.00024873,2]
[357499228,1744090256843,-500.87750444,0.00024873,2]
[357499229,1744090256855,-500.0,0.00024873,2]
[357499230,1744090256866,-500.0,0.00024873,2]
[357499231,1744090256879,-646.62366534,0.00024873,2]
[357499232,1744090256890,-183.69513266,0.00024873,2]
[357499233,1744090256902,-501.49778525,0.00024873,2]
[357499234,1744090256914,-160.0,0.00024899,2]
[357499235,1744090256926,-187.014792,0.00024899,7]
[357499236,1744090256938,-151.0,0.00024899,7]
[357499237,1744090256949,-151.0,0.00024899,7]
[357499238,1744090256960,-50000.0,0.000249,4]
[357499239,1744090256972,-151.0,0.000249,7]
[357499240,1744090256984,-151.0,0.000249,7]
[357499241,1744090256996,-151.0,0.000249,7]
[357499242,1744090257007,-211.845958,0.000249,7]
[357499243,1744090257020,-151.0,0.000249,2]
[357499244,1744090257032,-151.0,0.000249,2]
[357499245,1744090257044,-205.096391,0.000249,7]
[357499246,1744090257055,-205.096391,0.000249,7]
[357499247,1744090257068,-422.665962,0.000249,7]
[357499248,1744090257081,-422.665962,0.000249,7]
[357499249,1744090257093,-422.665962,0.000249,7]
[357499250,1744090257104,-422.665962,0.000249,7]
[357499251,1744090257114,-151.0,0.000249,7]
[357499252,1744090257124,-151.0,0.000249,7]
[357499253,1744090257133,-184.664143,0.000249,7]
[357499254,1744090257144,-151.0,0.000249,7]
[357499255,1744090257375,-151.0,0.000249,7]
[357499256,1744090257390,-152.32564,0.000249,7]
[357499257,1744090257400,-190.872034,0.000249,7]
[357499258,1744090257410,-190.872034,0.000249,7]
[357499259,1744090257419,-190.872034,0.000249,7]
[357499260,1744090257429,-190.872034,0.000249,7]
[357499261,1744090257438,-151.0,0.000249,7]
[357499262,1744090257448,-151.0,0.000249,7]
[357499263,1744090257457,-151.0,0.000249,7]
[357499264,1744090257467,-151.0,0.000249,7]
[357499265,1744090257477,-274.691803,0.000249,7]
[357499266,1744090257486,-818.3,0.00024913,2]
[357499267,1744090257496,-2302.42,0.00024913,2]
[357499268,1744090257506,-924.23,0.00024913,2]
[357499269,1744090257516,-920.99,0.00024913,2]
[357499270,1744090257525,-2679.96,0.00024913,2]
[357499271,1744090257535,-559.7,0.00024913,2]
[357499272,1744090257544,-770.69,0.00024913,2]
[357499273,1744090257555,-1419.97,0.00024913,2]
[357499274,1744090257564,-1230.42,0.00024913,2]
[357499275,1744090257576,-969.67,0.00024913,2]
[357499276,1744090257586,-1157.85,0.00024913,2]
[357499277,1744090257596,-813.13,0.00024913,2]
[357499278,1744090257605,-667.97,0.00024913,2]
[357499279,1744090257615,-500.0,0.00024914,2]
[357499280,1744090257626,-671.29,0.00024914,2]
[357499281,1744090257636,-896.67,0.00024914,2]
[357499282,1744090257645,-637.4,0.00024914,2]
[357499283,1744090257655,-665.25,0.00024914,2]
[357499284,1744090257665,-1225.48,0.00024914,2]
[357499285,1744090257674,-690.06,0.00024914,2]
[357499286,1744090257684,-500.0,0.00024914,2]
[357499287,1744090257694,-640.3,0.00024914,2]
[357499288,1744090257703,-931.44,0.00024914,2]
[357499289,1744090257712,-1164.59,0.00024914,2]
[357499290,1744090257722,-596.69,0.00024915,2]
[357499291,1744090257731,-691.82,0.00024915,2]
[357499292,1744090257740,-587.28,0.00024915,2]
[357499293,1744090257749,-500.0,0.00024915,2]
[357499294,1744090257759,-642.9,0.00024915,2]
[357499295,1744090257768,-650.59,0.00024915,2]
[357499296,1744090257777,-559.87,0.00024915,2]
[357499297,1744090257787,-500.0,0.00024915,2]
[357499298,1744090257797,-502.99,0.00024915,2]
[357499299,1744090257810,-584.46,0.00024915,2]
[357499300,1744090257819,-1136.79,0.00024915,2]
[357499301,1744090257829,-1091.03,0.00024915,2]
[357499302,1744090257839,-633.46,0.00024915,2]
[357499303,1744090257850,-846.06,0.00024915,2]
[357499304,1744090257860,-1133.83,0.00024915,2]
[357499305,1744090257870,-1701.67,0.00024915,2]
[357499306,1744090257881,-534.6,0.00024915,2]
[357499307,1744090257890,-625.54,0.00024915,2]
[357499308,1744090257900,-608.42,0.00024915,2]
[357499309,1744090257910,-2070.25,0.00024915,2]
[357499310,1744090257920,-4266.66,0.00024915,2]
[357499311,1744090257929,-1000.59,0.00024915,2]
[357499312,1744090257939,-612.7,0.00024917,2]
[357499313,1744090257948,-1002.0,0.00025,2]
[357499314,1744090257957,-10000.0,0.00025,3]
[357499315,1744090257967,-1883.779206,0.00025,2]
[357499316,1744090257978,-818.3,0.00025187,2]
[357499317,1744090257988,-2302.42,0.00025187,2]
[357499318,1744090257997,-924.23,0.00025187,2]
[357499319,1744090258007,-920.99,0.00025187,2]
[357499320,1744090258016,-2679.96,0.00025187,2]
[357499321,1744090258026,-559.7,0.00025187,2]
[357499322,1744090258036,-770.69,0.00025187,2]
[357499323,1744090258046,-1419.97,0.00025187,2]
[357499324,1744090258056,-1230.42,0.00025187,2]
[357499325,1744090258065,-969.67,0.00025187,2]
[357499326,1744090258076,-1157.85,0.00025187,2]
[357499327,1744090258086,-813.13,0.00025187,2]
[357499328,1744090258095,-667.97,0.00025187,2]
[357499329,1744090258104,-500.0,0.00025188,2]
[357499330,1744090258114,-671.29,0.00025188,2]
[357499331,1744090258124,-896.67,0.00025188,2]
[357499332,1744090258134,-637.4,0.00025188,2]
[357499333,1744090258143,-665.25,0.00025188,2]
[357499334,1744090258153,-1225.48,0.00025188,2]
[357499335,1744090258163,-690.06,0.00025188,2]
[357499336,1744090258172,-500.0,0.00025188,2]
[357499337,1744090258182,-640.3,0.00025188,2]
[357499338,1744090258192,-931.44,0.00025188,2]
[357499339,1744090258202,-1164.59,0.00025188,2]
[357499340,1744090258211,-596.69,0.00025189,2]
[357499341,1744090258221,-691.82,0.00025189,2]
[357499342,1744090258230,-587.28,0.00025189,2]
[357499343,1744090258239,-500.0,0.00025189,2]
[357499344,1744090258249,-642.9,0.00025189,2]
[357499345,1744090258258,-650.59,0.00025189,2]
[357499346,1744090258268,-559.87,0.00025189,2]
[357499347,1744090258278,-500.0,0.00025189,2]
[357499348,1744090258288,-502.99,0.00025189,2]
[357499349,1744090258297,-584.46,0.00025189,2]
[357499350,1744090258307,-1136.79,0.00025189,2]
[357499351,1744090258317,-1091.03,0.00025189,2]
[357499352,1744090258329,-633.46,0.00025189,2]
[357499353,1744090258339,-846.06,0.00025189,2]
[357499354,1744090258349,-1133.83,0.00025189,2]
[357499355,1744090258358,-1701.67,0.00025189,2]
[357499356,1744090258368,-534.6,0.00025189,2]
[357499357,1744090258377,-625.54,0.00025189,2]
[357499358,1744090258387,-608.42,0.00025189,2]
[357499359,1744090258396,-2070.25,0.00025189,2]
[357499360,1744090258406,-4266.66,0.00025189,2]
[357499361,1744090258415,-1000.59,0.00025189,2]
[357499362,1744090258424,-612.7,0.00025191,2]
[357499363,1744090258434,-500.0,0.00025376,2]
[357499364,1744090258443,-501.4554662,0.00025376,2]
[357499365,1744090258452,-500.58205629,0.00025376,2]
[357499366,1744090258461,-501.28287713,0.00025376,2]
[357499367,1744090258470,-615.16376688,0.00025376,2]
[357499368,1744090258480,-500.55098933,0.00025376,2]
[357499369,1744090258489,-300.36949938,0.00025376,2]
[357499370,1744090258498,-500.49303946,0.00025376,2]
[357499371,1744090258508,-502.07304544,0.00025376,2]
[357499372,1744090258517,-501.32097158,0.00025376,2]
[357499373,1744090258527,-501.97825502,0.00025376,2]
[357499374,1744090258536,-501.25735635,0.00025376,2]
[357499375,1744090258545,-552.26994576,0.00025376,2]
[357499376,1744090258555,-593.05159071,0.00025376,2]
[357499377,1744090258565,-500.0,0.00025376,2]
[357499378,1744090258574,-510.33701651,0.00025376,2]
[357499379,1744090258583,-501.04185555,0.00025376,2]
[357499380,1744090258593,-615.28107241,0.00025376,2]
[357499381,1744090258602,-501.02983718,0.00025376,2]
[357499382,1744090258612,-231.28369723,0.00025447,2]
[357499383,1744090258621,-818.3,0.00025461,2]
[357499384,1744090258630,-2302.42,0.00025461,2]
[357499385,1744090258640,-924.23,0.00025461,2]
[357499386,1744090258649,-920.99,0.00025461,2]
[357499387,1744090258659,-2679.96,0.00025461,2]
[357499388,1744090258670,-559.7,0.00025461,2]
[357499389,1744090258679,-770.69,0.00025461,2]
[357499390,1744090258688,-1419.97,0.00025461,2]
[357499391,1744090258698,-1230.42,0.00025461,2]
[357499392,1744090258707,-969.67,0.00025461,2]
[357499393,1744090258717,-1157.85,0.00025461,2]
[357499394,1744090258726,-813.13,0.00025461,2]
[357499395,1744090258736,-667.97,0.00025461,2]
[357499396,1744090258745,-500.0,0.00025462,2]
[357499397,1744090258755,-671.29,0.00025462,2]
[357499398,1744090258764,-896.67,0.00025462,2]
[357499399,1744090258773,-637.4,0.00025462,2]
[357499400,1744090258783,-665.25,0.00025462,2]
[357499401,1744090258793,-1225.48,0.00025462,2]
[357499402,1744090258807,-690.06,0.00025462,2]
[357499403,1744090258817,-500.0,0.00025462,2]
[357499404,1744090258827,-640.3,0.00025462,2]
[357499405,1744090258837,-931.44,0.00025462,2]
[357499406,1744090258847,-1164.59,0.00025462,2]
[357499407,1744090258856,-596.69,0.00025463,2]
[357499408,1744090258865,-691.82,0.00025463,2]
[357499409,1744090258874,-587.28,0.00025463,2]
[357499410,1744090258885,-154.72,0.00025463,2]
[357499411,1744090258895,-642.9,0.00025463,2]
[357499412,1744090258905,-650.59,0.00025463,2]
[357499413,1744090258914,-559.87,0.00025463,2]
[357499414,1744090258924,-500.0,0.00025463,2]
[357499415,1744090258933,-502.99,0.00025463,2]
[357499416,1744090258942,-584.46,0.00025463,2]
[357499417,1744090258952,-1136.79,0.00025463,2]
[357499418,1744090258961,-1091.03,0.00025463,2]
[357499419,1744090258970,-633.46,0.00025463,2]
[357499420,1744090258980,-846.06,0.00025463,2]
[357499421,1744090258989,-1133.83,0.00025463,2]
[357499422,1744090258999,-1701.67,0.00025463,2]
[357499423,1744090259008,-534.6,0.00025463,2]
[357499424,1744090259021,-625.54,0.00025463,2]
[357499425,1744090259031,-608.42,0.00025463,2]
[357499426,1744090259040,-2070.25,0.00025463,2]
[357499427,1744090259050,-4266.66,0.00025463,2]
[357499428,1744090259059,-1000.59,0.00025463,2]
[357499429,1744090259068,-612.7,0.00025465,2]
[357499430,1744090259078,-900.0,0.00025469,3]
[357499431,1744090259087,-14781.95051,0.000255,3]
[357499432,1744090259096,-501.01809197,0.00025513,2]
[357499433,1744090259106,-435.50982937,0.00025513,2]
[357499434,1744090259115,-500.0,0.00025513,2]
[357499435,1744090259124,-501.06796866,0.00025513,2]
[357499436,1744090259133,-500.63505816,0.00025513,2]
[357499437,1744090259143,-500.0,0.00025513,2]
[357499438,1744090259151,-500.0,0.00025513,2]
[357499439,1744090259161,-502.22652041,0.00025513,2]
[357499440,1744090259170,-500.0,0.00025513,2]
[357499441,1744090259179,-608.3465431,0.00025513,2]
[357499442,1744090259189,-301.64419783,0.00025513,2]
[357499443,1744090259198,-430.08989638,0.00025513,2]
[357499444,1744090259208,-500.44014391,0.00025513,2]
[357499445,1744090259217,-165.09083967,0.00025513,2]
[357499446,1744090259228,-500.0,0.00025513,2]
[357499447,1744090259237,-500.0,0.00025513,2]
[357499448,1744090259247,-500.0,0.00025513,2]
[357499449,1744090259257,-500.96418781,0.00025513,2]
[357499450,1744090259267,-500.0,0.00025513,2]
[357499451,1744090259276,-256.9179675,0.00025513,2]
[357499452,1744090259285,-500.0,0.00025513,2]
[357499453,1744090259295,-818.3,0.00025735,2]
[357499454,1744090259305,-2302.42,0.00025735,2]
[357499455,1744090259314,-924.23,0.00025735,2]
[357499456,1744090259324,-920.99,0.00025735,2]
[357499457,1744090259334,-2679.96,0.00025735,2]
[357499458,1744090259343,-559.7,0.00025735,2]
[357499459,1744090259352,-770.69,0.00025735,2]
[357499460,1744090259362,-1419.97,0.00025735,2]
[357499461,1744090259371,-1230.42,0.00025735,2]
[357499462,1744090259380,-969.67,0.00025735,2]
[357499463,1744090259389,-1157.85,0.00025735,2]
[357499464,1744090259399,-813.13,0.00025735,2]
[357499465,1744090259408,-667.97,0.00025735,2]
[357499466,1744090259418,-462.71299165,0.00025736,2]
[357499467,1744090259428,-671.29,0.00025736,2]
[357499468,1744090259438,-896.67,0.00025736,2]
[357499469,1744090259447,-637.4,0.00025736,2]
[357499470,1744090259457,-665.25,0.00025736,2]
[357499471,1744090259467,-1225.48,0.00025736,2]
[357499472,1744090259476,-690.06,0.00025736,2]
[357499473,1744090259486,-300.50183394,0.00025736,2]
[357499474,1744090259495,-640.3,0.00025736,2]
[357499475,1744090259504,-931.44,0.00025736,2]
[357499476,1744090259514,-1164.59,0.00025736,2]
[357499477,1744090259524,-596.69,0.00025737,2]
[357499478,1744090259533,-691.82,0.00025737,2]
[357499479,1744090259543,-151.0,0.00025737,7]
[357499480,1744090259552,-151.0,0.00025737,7]
[357499481,1744090259562,-587.28,0.00025737,2]
[357499482,1744090259571,-190.872034,0.00025737,7]
[357499483,1744090259581,-190.872034,0.00025737,7]
[357499484,1744090259591,-642.9,0.00025737,2]
[357499485,1744090259600,-650.59,0.00025737,2]
[357499486,1744090259610,-559.87,0.00025737,2]
[357499487,1744090259620,-1466.74622,0.00025737,2]
[357499488,1744090259630,-231.18807968,0.00025737,2]
[357499489,1744090259640,-502.99,0.00025737,2]
[357499490,1744090259649,-584.46,0.00025737,2]
[357499491,1744090259659,-1136.79,0.00025737,2]
[357499492,1744090259669,-1091.03,0.00025737,2]
[357499493,1744090259679,-633.46,0.00025737,2]
[357499494,1744090259689,-846.06,0.00025737,2]
[357499495,1744090259699,-151.0,0.00025737,7]
[357499496,1744090259709,-1133.83,0.00025737,2]
[357499497,1744090259719,-1701.67,0.00025737,2]
[357499498,1744090259730,-151.0,0.00025737,7]
[357499499,1744090259740,-534.6,0.00025737,2]
[357499500,1744090259750,-625.54,0.00025737,2]
[357499501,1744090259760,-608.42,0.00025737,2]
[357499502,1744090259770,-2070.25,0.00025737,2]
[357499503,1744090259780,-151.0,0.00025737,7]
[357499504,1744090259790,-4266.66,0.00025737,2]
[357499505,1744090259801,-1000.59,0.00025737,2]
[357499506,1744090259814,-151.0,0.00025738,7]
[357499507,1744090259824,-282.881137,0.00025738,7]
[357499508,1744090259833,-205.096391,0.00025738,7]
[357499509,1744090259844,-205.096391,0.00025738,7]
[357499510,1744090259853,-422.665962,0.00025738,7]
[357499511,1744090259863,-422.665962,0.00025738,7]
[357499512,1744090259872,-151.0,0.00025739,2]
[357499513,1744090259883,-180.558787,0.00025739,2]
[357499514,1744090259892,-612.7,0.00025739,2]
[357499515,1744090259902,-500.0,0.000258,2]
[357499516,1744090259912,-40000.0,0.000259,4]
[357499517,1744090259921,-2953.33752674,0.00026,3]
[357499518,1744090259931,-818.3,0.00026009,2]
[357499519,1744090259941,-2302.42,0.00026009,2]
[357499520,1744090259951,-924.23,0.00026009,2]
[357499521,1744090259961,-920.99,0.00026009,2]
[357499522,1744090259970,-2679.96,0.00026009,2]
[357499523,1744090259980,-559.7,0.00026009,2]
[357499524,1744090259989,-770.69,0.00026009,2]
[357499525,1744090259999,-1419.97,0.00026009,2]
[357499526,1744090260010,-1230.42,0.00026009,2]
[357499527,1744090260020,-969.67,0.00026009,2]
[357499528,1744090260030,-1157.85,0.00026009,2]
[357499529,1744090260040,-813.13,0.00026009,2]
[357499530,1744090260050,-667.97,0.00026009,2]
[357499531,1744090260061,-671.29,0.0002601,2]
[357499532,1744090260071,-896.67,0.0002601,2]
[357499533,1744090260083,-637.4,0.0002601,2]
[357499534,1744090260093,-665.25,0.0002601,2]
[357499535,1744090260102,-1225.48,0.0002601,2]
[357499536,1744090260112,-690.06,0.0002601,2]
[357499537,1744090260122,-640.3,0.0002601,2]
[357499538,1744090260131,-931.44,0.0002601,2]
[357499539,1744090260140,-1164.59,0.0002601,2]
[357499540,1744090260150,-596.69,0.00026011,2]
[357499541,1744090260160,-691.82,0.00026011,2]
[357499542,1744090260170,-587.28,0.00026011,2]
[357499543,1744090260179,-642.9,0.00026011,2]
[357499544,1744090260189,-650.59,0.00026011,2]
[357499545,1744090260199,-559.87,0.00026011,2]
[357499546,1744090260209,-502.99,0.00026011,2]
[357499547,1744090260219,-584.46,0.00026011,2]
[357499548,1744090260229,-1136.79,0.00026011,2]
[357499549,1744090260239,-1091.03,0.00026011,2]
[357499550,1744090260249,-633.46,0.00026011,2]
[357499551,1744090260258,-846.06,0.00026011,2]
[357499552,1744090260268,-1133.83,0.00026011,2]
[357499553,1744090260277,-1701.67,0.00026011,2]
[357499554,1744090260287,-534.6,0.00026011,2]
[357499555,1744090260298,-625.54,0.00026011,2]
[357499556,1744090260307,-608.42,0.00026011,2]
[357499557,1744090260317,-2070.25,0.00026011,2]
[357499558,1744090260328,-4266.66,0.00026011,2]
[357499559,1744090260337,-1000.59,0.00026011,2]
[357499560,1744090260347,-612.7,0.00026013,2]
[357499561,1744090260357,-200.0,0.00026027,2]
[357499562,1744090260367,-818.4314664,0.00026283,2]
[357499563,1744090260376,-2302.53,0.00026283,2]
[357499564,1744090260386,-924.3709671,0.00026283,2]
[357499565,1744090260396,-921.13379216,0.00026283,2]
[357499566,1744090260406,-2680.09171642,0.00026283,2]
[357499567,1744090260415,-559.77912864,0.00026283,2]
[357499568,1744090260425,-770.92750766,0.00026283,2]
[357499569,1744090260435,-1420.11726312,0.00026283,2]
[357499570,1744090260446,-1230.59433331,0.00026283,2]
[357499571,1744090260456,-969.87483493,0.00026283,2]
[357499572,1744090260465,-1157.89341275,0.00026283,2]
[357499573,1744090260475,-813.33,0.00026283,2]
[357499574,1744090260484,-668.01196769,0.00026283,2]
[357499575,1744090260495,-671.38941568,0.00026284,2]
[357499576,1744090260504,-896.90932518,0.00026284,2]
[357499577,1744090260514,-637.51743139,0.00026284,2]
[357499578,1744090260524,-665.48138516,0.00026284,2]
[357499579,1744090260534,-1225.62897893,0.00026284,2]
[357499580,1744090260544,-690.1210492,0.00026284,2]
[357499581,1744090260733,-640.41272621,0.00026284,2]
[357499582,1744090260744,-931.49,0.00026284,2]
[357499583,1744090260754,-1164.77101796,0.00026284,2]
[357499584,1744090260764,-596.8154328,0.00026285,2]
[357499585,1744090260773,-691.86754438,0.00026285,2]
[357499586,1744090260784,-587.37577496,0.00026285,2]
[357499587,1744090260794,-643.0863813,0.00026285,2]
[357499588,1744090260805,-650.76790896,0.00026285,2]
[357499589,1744090260815,-559.90752651,0.00026285,2]
[357499590,1744090260827,-503.17021685,0.00026285,2]
[357499591,1744090260837,-584.52356968,0.00026285,2]
[357499592,1744090260849,-1136.95681117,0.00026285,2]
[357499593,1744090260859,-1091.22,0.00026285,2]
[357499594,1744090260868,-633.57364586,0.00026285,2]
[357499595,1744090260879,-846.2899122,0.00026285,2]
[357499596,1744090260889,-1133.89213829,0.00026285,2]
[357499597,1744090260898,-1701.77159413,0.00026285,2]
[357499598,1744090260908,-534.64849753,0.00026285,2]
[357499599,1744090260918,-625.5556666,0.00026285,2]
[357499600,1744090260928,-608.48432655,0.00026285,2]
[357499601,1744090260938,-2070.35803004,0.00026285,2]
[357499602,1744090260948,-4266.82548836,0.00026285,2]
[357499603,1744090260957,-1000.76161778,0.00026285,2]
[357499604,1744090260967,-612.86994431,0.00026287,2]
[357499605,1744090260976,-157.167506,0.000264,3]
[357499606,1744090260986,-500.0,0.00026452,2]
[357499607,1744090260996,-1000.0,0.00026452,2]
[357499608,1744090261006,-1000.0,0.00026452,2]
[357499609,1744090261016,-159.5185218,0.00026452,2]
[357499610,1744090261026,-350.85921659,0.00026452,2]
[357499611,1744090261035,-762.78016025,0.00026452,2]
[357499612,1744090261046,-1000.0,0.00026452,2]
[357499613,1744090261056,-1000.0,0.00026452,2]
[357499614,1744090261066,-1000.0,0.00026452,2]
[357499615,1744090261076,-1000.0,0.00026452,2]
[357499616,1744090261086,-1000.0,0.00026452,2]
[357499617,1744090261095,-1000.0,0.00026452,2]
[357499618,1744090261106,-1000.0,0.00026452,2]
[357499619,1744090261116,-1000.0,0.00026452,2]
[357499620,1744090261126,-1000.0,0.00026452,2]
[357499621,1744090261136,-1000.0,0.00026452,2]
[357499622,1744090261146,-1000.0,0.00026452,2]
[357499623,1744090261155,-1000.0,0.00026452,2]
[357499624,1744090261165,-1000.0,0.00026452,2]
[357499625,1744090261174,-1000.0,0.00026452,2]
[357499626,1744090261183,-344.21932743,0.00026816,2]
[357499627,1744090261193,-40000.0,0.000269,5]
[357499628,1744090261202,-205.096391,0.000269,7]
[357499629,1744090261212,-205.096391,0.000269,7]
[357499630,1744090261221,-151.0,0.000269,7]
[357499631,1744090261232,-151.0,0.000269,7]
[357499632,1744090261241,-190.872034,0.000269,7]
[357499633,1744090261251,-151.0,0.000269,7]
[357499634,1744090261260,-190.872034,0.000269,7]
[357499635,1744090261269,-1466.74622,0.000269,2]
[357499636,1744090261279,-151.0,0.000269,7]
[357499637,1744090261288,-236.43245,0.000269,7]
[357499638,1744090261298,-151.0,0.000269,7]
[357499639,1744090261308,-590.2046757,0.00027192,120]
[357499640,1744090261318,-422.665962,0.00027225,7]
[357499641,1744090261328,-422.665962,0.00027225,7]
[357499642,1744090261338,-150.06,0.00027397,2]
[357499643,1744090261347,-151.0,0.00027397,7]
[357499644,1744090261357,-150.315781,0.00027397,2]
[357499645,1744090261366,-150.34853812,0.00027397,2]
[357499646,1744090261376,-150.21896084,0.00027397,2]
[357499647,1744090261385,-150.19837571,0.00027397,2]
[357499648,1744090261395,-151.62448049,0.00027397,2]
[357499649,1744090261405,-300.08686792,0.00027397,2]
[357499650,1744090261415,-150.29673519,0.00027397,2]
[357499651,1744090261426,-150.06,0.00027397,2]
[357499652,1744090261436,-150.18903886,0.00027397,2]
[357499653,1744090261447,-187.1469345,0.00027397,2]
[357499654,1744090261457,-150.06,0.00027397,2]
[357499655,1744090261466,-150.20594556,0.00027397,2]
[357499656,1744090261476,-300.10402366,0.00027397,2]
[357499657,1744090261486,-150.27659897,0.00027397,2]
[357499658,1744090261496,-150.25447333,0.00027397,2]
[357499659,1744090261506,-150.06,0.00027397,2]
[357499660,1744090261516,-150.06,0.00027397,2]
[357499661,1744090261525,-150.06,0.00027397,2]
[357499662,1744090261534,-150.41115734,0.00027397,2]
[357499663,1744090261543,-150.33335888,0.00027397,2]
[357499664,1744090261553,-150.06,0.00027397,2]
[357499665,1744090261564,-150.06,0.00027397,2]
[357499666,1744090261574,-150.06,0.00027397,2]
[357499667,1744090261586,-150.97968269,0.00027397,2]
[357499668,1744090261596,-150.06,0.00027397,2]
[357499669,1744090261605,-200.0,0.00027397,2]
[357499670,1744090261616,-150.06,0.00027397,2]
[357499671,1744090261626,-501.49010657,0.00027397,2]
[357499672,1744090261636,-167.593456,0.00027397,120]
[357499673,1744090261646,-151.365235,0.00027397,7]
[357499674,1744090261656,-500.0,0.00027397,5]
[357499675,1744090261666,-18943.80452047,0.000277,2]
[357499676,1744090261676,-151.0,0.000277,2]
[357499677,1744090261686,-160.0,0.00027899,10]
[357499678,1744090261697,-50000.0,0.000279,5]
[357499679,1744090261707,-150.08238311,0.00027945,2]
[357499680,1744090261718,-150.06,0.00027945,2]
[357499681,1744090261727,-150.06,0.00027945,2]
[357499682,1744090261737,-150.06,0.00027945,2]
[357499684,1744090261747,-150.06,0.00027945,2]
[357499685,1744090261757,-150.06,0.00027945,2]
[357499686,1744090261767,-150.06,0.00027945,2]
[357499687,1744090261777,-150.06,0.00027945,2]
[357499688,1744090261787,-150.06,0.00027945,2]
[357499689,1744090261797,-150.06,0.00027945,2]
[357499690,1744090261811,-150.06,0.00027945,2]
[357499691,1744090261820,-179.91004498,0.00027959,2]
[357499692,1744090261830,-1000.0,0.00028,2]
[357499693,1744090261840,-150.16910683,0.00028422,5]
[357499694,1744090261851,-200.30890559,0.00028493,2]
[357499695,1744090261861,-152.18879173,0.00028493,2]
[357499696,1744090261871,-150.68941332,0.00028493,2]
[357499697,1744090261882,-151.4620277,0.00028493,2]
[357499698,1744090261892,-150.1614324,0.00028493,2]
[357499699,1744090261902,-154.29110152,0.00028493,2]
[357499700,1744090261912,-156.05287585,0.00028493,2]
[357499701,1744090261922,-150.06,0.00028493,2]
[357499702,1744090261932,-150.06,0.00028493,2]
[357499703,1744090261943,-150.06,0.00028493,2]
[357499704,1744090261953,-180.235759,0.00028579,2]
[357499705,1744090261963,-2000.0,0.0002867,4]
[357499706,1744090261974,-200.0,0.00028767,2]
[357499707,1744090261984,-163.31155111,0.00028899,10]
[357499708,1744090261994,-50000.0,0.000289,5]
[357499709,1744090262005,-2000.0,0.00029003,4]
[357499710,1744090262017,-150.06,0.00029041,2]
[357499711,1744090262029,-150.06,0.00029041,2]
[357499712,1744090262040,-150.06,0.00029041,2]
[357499713,1744090262050,-2000.0,0.00029335,4]
[357499714,1744090262060,-801.802,0.00029392,2]
[357499715,1744090262069,-547.401,0.00029392,2]
[357499716,1744090262080,-2253.0,0.00029392,2]
[357499717,1744090262090,-150.584,0.00029392,2]